[Event "XXII Obert Internacional d'Escacs Sant Marti 2022"]
[Site "Barcelona, Spain"]
[Date "2022.07.20"]
[Round "8.1"]
[White "Diermair, Andreas"]
[Black "Pena Gomez, Manuel"]
[Result "0-1"]
[TimeControl "1.30 fb 30"]
[WhiteElo "2452"]
[BlackElo "2492"]

1. d4 {[%clk 01:30:58]} {[%emt 00:00:01]} Nf6 {[%clk 01:30:54]} {[%emt
00:00:06]} 2. c4 {[%clk 01:31:25]} {[%emt 00:00:03]} g6 {[%clk 01:31:18]}
{[%emt 00:00:07]} 3. Nc3 {[%clk 01:31:50]} {[%emt 00:00:05]} Bg7 {[%emt
00:00:10]} 4. e4 {[%clk 01:32:15]} {[%emt 00:00:02]} d6 {[%clk 01:32:05]}
{[%emt 00:00:05]} 5. Nf3 {[%clk 01:32:28]} {[%emt 00:00:18]} O-O {[%clk
01:32:25]} {[%emt 00:00:10]} 6. Be2 {[%clk 01:32:51]} {[%emt 00:00:07]} e5
{[%clk 01:32:34]} {[%emt 00:00:21]} 7. Be3 {[%clk 01:33:07]} {[%emt 00:00:14]}
exd4 {[%clk 01:31:58]} {[%emt 00:01:07]} 8. Nxd4 {[%clk 01:33:31]} {[%emt
00:00:06]} Re8 {[%clk 01:32:26]} {[%emt 00:00:03]} 9. f3 {[%clk 01:33:41]}
{[%emt 00:00:19]} c6 {[%clk 01:32:54]} {[%emt 00:00:02]} 10. Bf2 {[%emt
00:02:22]} d5 {[%clk 01:31:10]} {[%emt 00:00:06]} 11. exd5 {[%clk 01:34:13]}
{[%emt 00:00:15]} cxd5 {[%clk 01:31:37]} {[%emt 00:00:02]} 12. O-O {[%clk
01:34:24]} {[%emt 00:00:19]} Nc6 {[%clk 01:31:06]} {[%emt 00:01:01]} 13. c5
{[%clk 01:34:35]} {[%emt 00:00:19]} Nh5 {[%clk 01:30:55]} {[%emt 00:00:41]} 14.
Qd2 {[%clk 01:34:37]} {[%emt 00:00:28]} Be5 {[%emt 00:00:09]} 15. g3 {[%clk
01:34:49]} {[%emt 00:00:16]} Ng7 {[%clk 01:30:53]} {[%emt 00:00:56]} 16. Rfd1
{[%clk 01:34:10]} {[%emt 00:01:08]} a6 {[%emt 00:10:16]} 17. Bf1 {[%emt
00:19:35]} Bxd4 {[%clk 01:03:33]} {[%emt 00:07:17]} 18. Bxd4 {[%clk 01:26:17]}
{[%emt 00:00:06]} Nf5 {[%clk 01:03:54]} {[%emt 00:00:08]} 19. Bf2 {[%clk
01:24:23]} {[%emt 00:02:24]} d4 {[%clk 00:59:24]} {[%emt 00:05:00]} 20. Ne4
{[%clk 01:19:32]} {[%emt 00:05:20]} Be6 {[%emt 00:09:21]} 21. Qf4 {[%clk
00:45:30]} {[%emt 00:34:27]} Bd5 {[%clk 00:45:33]} {[%emt 00:05:37]} 22. Re1
{[%clk 00:41:01]} {[%emt 00:04:59]} Bxe4 {[%clk 00:42:16]} {[%emt 00:03:47]} 23.
Rxe4 {[%clk 00:40:42]} {[%emt 00:00:47]} Rxe4 {[%emt 00:03:57]} 24. Qxe4 {[%clk
00:35:44]} {[%emt 00:01:35]} Qf8 {[%clk 00:42:25]} {[%emt 00:00:48]} 25. Rc1
{[%clk 00:34:17]} {[%emt 00:01:57]} Re8 {[%clk 00:41:59]} {[%emt 00:00:56]} 26.
Qd3 {[%emt 00:09:25]} Ne3 {[%clk 00:34:16]} {[%emt 00:01:32]} 27. Be2 {[%clk
00:27:34]} {[%emt 00:04:58]} Qh6 {[%clk 00:32:06]} {[%emt 00:02:39]} 28. f4
{[%clk 00:25:11]} {[%emt 00:02:54]} Qh3 {[%clk 00:30:38]} {[%emt 00:01:58]} 29.
Bf3 {[%clk 00:24:19]} {[%emt 00:01:22]} Ng4 {[%clk 00:30:55]} {[%emt 00:00:13]}
30. Bxg4 {[%clk 00:24:09]} {[%emt 00:00:40]} Qxg4 {[%clk 00:31:23]} {[%emt
00:00:02]} 31. Re1 {[%clk 00:24:12]} {[%emt 00:00:26]} Rxe1+ {[%clk 00:31:37]}
{[%emt 00:00:18]} 32. Bxe1 {[%clk 00:24:40]} Qe6 {[%clk 00:32:02]} {[%emt
00:00:05]} 33. Bf2 {[%clk 00:20:36]} {[%emt 00:04:34]} Qxa2 {[%clk 00:32:29]}
{[%emt 00:00:03]} 34. b4 {[%clk 00:20:33]} {[%emt 00:00:32]} Qa1+ {[%clk
00:32:16]} {[%emt 00:00:43]} 35. Kg2 {[%clk 00:20:58]} {[%emt 00:00:05]} Qc3
{[%emt 00:00:10]} 36. Qe4 {[%clk 00:20:54]} {[%emt 00:00:32]} d3 {[%clk
00:28:34]} {[%emt 00:04:35]} 37. f5 {[%clk 00:21:09]} {[%emt 00:00:15]} d2
{[%clk 00:27:36]} {[%emt 00:01:28]} 38. Qd5 {[%clk 00:20:25]} {[%emt 00:01:14]}
gxf5 {[%clk 00:27:28]} {[%emt 00:00:38]} 0-1

[Event "XXII Obert Internacional d'Escacs Sant Marti 2022"]
[Site "Barcelona, Spain"]
[Date "2022.07.20"]
[Round "8.2"]
[White "Kovchan, Alexander"]
[Black "Aronyak, Ghosh"]
[Result "1/2-1/2"]
[TimeControl "1.30 fb 30"]
[WhiteElo "2468"]
[BlackElo "2486"]

1. e4 {[%clk 01:30:56]} {[%emt 00:00:02]} c6 {[%clk 01:30:29]} {[%emt
00:00:32]} 2. d4 {[%clk 01:31:17]} {[%emt 00:00:10]} d5 {[%clk 01:30:50]}
{[%emt 00:00:09]} 3. e5 {[%clk 01:31:19]} {[%emt 00:00:29]} Bf5 {[%clk
01:31:01]} {[%emt 00:00:17]} 4. Nf3 {[%clk 01:31:32]} {[%emt 00:00:17]} e6
{[%emt 00:00:15]} 5. Be2 {[%clk 01:31:48]} {[%emt 00:00:12]} c5 {[%clk
01:31:23]} {[%emt 00:00:25]} 6. Be3 {[%clk 01:31:55]} {[%emt 00:00:22]} cxd4
{[%clk 01:31:37]} {[%emt 00:00:17]} 7. Nxd4 {[%clk 01:32:04]} {[%emt 00:00:21]}
Ne7 {[%clk 01:31:56]} {[%emt 00:00:10]} 8. O-O {[%clk 01:31:59]} {[%emt
00:00:35]} Nbc6 {[%clk 01:32:01]} {[%emt 00:00:25]} 9. Bb5 {[%clk 01:31:25]}
{[%emt 00:01:04]} a6 {[%clk 01:32:15]} {[%emt 00:00:17]} 10. Bxc6+ {[%clk
01:31:21]} {[%emt 00:00:33]} bxc6 {[%clk 01:32:39]} {[%emt 00:00:05]} 11. c4
{[%clk 01:31:16]} {[%emt 00:00:35]} Qd7 {[%emt 00:04:46]} 12. Nc3 {[%clk
01:26:20]} {[%emt 00:00:51]} dxc4 {[%clk 01:33:19]} {[%emt 00:00:10]} 13. Nxf5
{[%clk 01:26:13]} {[%emt 00:00:37]} Qxd1 {[%clk 01:33:37]} {[%emt 00:00:12]} 14.
Nxd1 {[%clk 01:26:30]} {[%emt 00:00:13]} Nxf5 {[%clk 01:33:57]} {[%emt
00:00:10]} 15. Rc1 {[%clk 01:26:47]} {[%emt 00:00:13]} O-O-O {[%clk 01:34:16]}
{[%emt 00:00:11]} 16. Rxc4 {[%clk 01:27:01]} {[%emt 00:00:16]} Kb7 {[%emt
00:10:49]} 17. g4 {[%clk 01:13:19]} {[%emt 00:03:27]} Nh4 {[%clk 01:31:14]}
{[%emt 00:03:58]} 18. f4 {[%clk 01:13:25]} {[%emt 00:00:24]} h5 {[%clk
01:30:20]} {[%emt 00:01:23]} 19. g5 {[%clk 01:10:51]} {[%emt 00:03:05]} 1/2-1/2

[Event "XXII Obert Internacional d'Escacs Sant Marti 2022"]
[Site "Barcelona, Spain"]
[Date "2022.07.20"]
[Round "8.3"]
[White "Berdayes Ason, Dylan Isidro"]
[Black "Valenzuela Gomez, Fernando"]
[Result "1-0"]
[TimeControl "1.30 fb 30"]
[WhiteElo "2480"]
[BlackElo "2373"]

1. d4 {[%clk 01:30:57]} {[%emt 00:00:02]} d5 {[%clk 01:22:44]} {[%emt
00:08:17]} 2. c4 {[%clk 01:31:24]} {[%emt 00:00:03]} e6 {[%clk 01:23:10]}
{[%emt 00:00:05]} 3. Nc3 {[%clk 01:31:49]} {[%emt 00:00:05]} Nf6 {[%clk
01:23:35]} {[%emt 00:00:04]} 4. cxd5 {[%clk 01:32:10]} {[%emt 00:00:10]} exd5
{[%clk 01:24:03]} {[%emt 00:00:01]} 5. Bg5 {[%clk 01:32:37]} {[%emt 00:00:03]}
c6 {[%clk 01:24:29]} {[%emt 00:00:05]} 6. e3 {[%clk 01:33:03]} {[%emt
00:00:04]} h6 {[%clk 01:24:56]} {[%emt 00:00:02]} 7. Bh4 {[%clk 01:33:31]}
{[%emt 00:00:02]} Be7 {[%clk 01:25:22]} {[%emt 00:00:04]} 8. Bd3 {[%clk
01:33:58]} {[%emt 00:00:03]} O-O {[%clk 01:25:34]} {[%emt 00:00:19]} 9. Bg3
{[%clk 01:34:23]} {[%emt 00:00:05]} Bd6 {[%clk 01:20:39]} {[%emt 00:05:24]} 10.
Nge2 {[%clk 01:34:20]} {[%emt 00:00:33]} Bxg3 {[%clk 01:19:37]} {[%emt
00:01:33]} 11. Nxg3 {[%clk 01:34:48]} {[%emt 00:00:03]} Re8 {[%clk 01:19:44]}
{[%emt 00:00:22]} 12. O-O {[%clk 01:35:15]} {[%emt 00:00:03]} Nbd7 {[%clk
01:17:52]} {[%emt 00:02:22]} 13. b4 {[%clk 01:31:53]} {[%emt 00:03:51]} a5
{[%clk 01:09:04]} {[%emt 00:09:19]} 14. b5 {[%clk 01:28:13]} {[%emt 00:04:10]}
c5 {[%clk 01:08:25]} {[%emt 00:01:08]} 15. dxc5 {[%clk 01:28:41]} {[%emt
00:00:03]} Nxc5 {[%clk 01:08:40]} {[%emt 00:00:15]} 16. Rc1 {[%clk 01:28:39]}
{[%emt 00:00:32]} Bg4 {[%emt 00:01:03]} 17. Be2 {[%clk 01:27:24]} {[%emt
00:01:43]} Bxe2 {[%clk 01:08:05]} {[%emt 00:00:34]} 18. Ngxe2 {[%clk 01:27:27]}
{[%emt 00:00:26]} Nce4 {[%clk 01:05:19]} {[%emt 00:03:17]} 19. Qd4 {[%clk
01:20:36]} {[%emt 00:07:20]} Rc8 {[%clk 01:02:07]} {[%emt 00:03:42]} 20. Rfd1
{[%clk 01:20:59]} {[%emt 00:00:07]} Nxc3 {[%clk 00:48:44]} {[%emt 00:13:54]} 21.
Rxc3 {[%clk 01:16:01]} {[%emt 00:05:28]} Qd7 {[%clk 00:44:22]} {[%emt
00:04:52]} 22. Qa4 {[%clk 01:10:28]} {[%emt 00:06:03]} Rxc3 {[%clk 00:30:15]}
{[%emt 00:14:37]} 23. Nxc3 {[%clk 01:10:57]} {[%emt 00:00:01]} Rc8 {[%clk
00:28:16]} {[%emt 00:02:28]} 24. Qb3 {[%clk 00:54:13]} {[%emt 00:17:14]} Rc5
{[%clk 00:26:27]} {[%emt 00:02:19]} 25. h3 {[%clk 00:52:52]} {[%emt 00:01:51]}
Qe6 {[%clk 00:25:00]} {[%emt 00:01:57]} 26. Ne2 {[%clk 00:49:48]} {[%emt
00:03:35]} Qe4 {[%clk 00:18:51]} {[%emt 00:06:38]} 27. Nd4 {[%clk 00:50:07]}
{[%emt 00:00:11]} Qe7 {[%clk 00:18:07]} {[%emt 00:01:14]} 28. Qd3 {[%clk
00:46:55]} {[%emt 00:03:42]} Qc7 {[%clk 00:17:49]} {[%emt 00:00:48]} 29. Qf5
{[%clk 00:43:06]} {[%emt 00:04:20]} Rc1 {[%emt 00:02:21]} 30. Rxc1 {[%clk
00:43:26]} {[%emt 00:00:09]} Qxc1+ {[%clk 00:16:27]} 31. Kh2 {[%clk 00:43:55]}
Qc7+ {[%clk 00:16:37]} {[%emt 00:00:19]} 32. g3 {[%clk 00:44:11]} {[%emt
00:00:14]} Kf8 {[%clk 00:14:25]} {[%emt 00:02:43]} 33. Kg2 {[%clk 00:44:37]}
{[%emt 00:00:03]} Ke7 {[%clk 00:13:30]} {[%emt 00:01:26]} 34. Qd3 {[%clk
00:41:57]} {[%emt 00:03:10]} g6 {[%clk 00:13:26]} {[%emt 00:00:35]} 35. Qa3+
{[%clk 00:42:15]} {[%emt 00:00:12]} Ke8 {[%clk 00:13:34]} {[%emt 00:00:21]} 36.
Nb3 {[%clk 00:40:01]} {[%emt 00:02:44]} b6 {[%clk 00:12:10]} {[%emt 00:01:54]}
37. Qb2 {[%clk 00:40:13]} {[%emt 00:00:18]} Qe7 {[%clk 00:11:03]} {[%emt
00:01:37]} 38. Nd4 {[%clk 00:34:52]} {[%emt 00:05:51]} Ne4 {[%clk 00:10:01]}
{[%emt 00:01:32]} 39. Qe2 {[%clk 00:31:56]} {[%emt 00:03:26]} Nc5 {[%clk
00:09:09]} {[%emt 00:01:22]} 40. Kh2 {[%clk 00:30:44]} {[%emt 00:01:42]} Qe4
{[%clk 00:09:33]} {[%emt 00:00:06]} 41. Nc6 {[%clk 00:29:42]} {[%emt 00:01:32]}
Kf8 {[%clk 00:08:04]} {[%emt 00:01:59]} 42. Qb2 {[%clk 00:29:39]} {[%emt
00:00:33]} Kg8 {[%clk 00:07:45]} {[%emt 00:00:49]} 43. Qf6 {[%clk 00:30:00]}
{[%emt 00:00:09]} Nd3 {[%clk 00:06:24]} {[%emt 00:01:52]} 44. Ne7+ {[%clk
00:15:45]} {[%emt 00:14:44]} Kf8 {[%clk 00:06:45]} {[%emt 00:00:10]} 45. Nc8
{[%clk 00:16:11]} {[%emt 00:00:04]} Kg8 {[%clk 00:05:47]} {[%emt 00:01:27]} 46.
Nd6 {[%clk 00:15:55]} {[%emt 00:00:46]} Qe6 {[%clk 00:05:52]} {[%emt 00:00:24]}
47. Qxe6 {[%clk 00:15:19]} {[%emt 00:01:06]} fxe6 {[%clk 00:06:20]} {[%emt
00:00:02]} 48. Nc8 {[%clk 00:15:44]} {[%emt 00:00:06]} Kf7 {[%clk 00:05:38]}
{[%emt 00:01:12]} 49. Nxb6 {[%clk 00:16:11]} {[%emt 00:00:03]} Ke7 {[%clk
00:05:59]} {[%emt 00:00:09]} 50. Kg2 {[%clk 00:15:13]} {[%emt 00:01:28]} Kd6
{[%clk 00:04:54]} {[%emt 00:01:35]} 51. Na4 {[%clk 00:14:55]} {[%emt 00:00:49]}
Nb4 {[%clk 00:05:06]} {[%emt 00:00:18]} 52. Nc3 {[%clk 00:12:03]} {[%emt
00:03:22]} e5 {[%clk 00:04:34]} {[%emt 00:01:02]} 53. a3 {[%clk 00:12:08]}
{[%emt 00:00:25]} Nc2 {[%clk 00:03:52]} {[%emt 00:01:11]} 54. a4 {[%clk
00:12:37]} {[%emt 00:00:02]} Nb4 {[%clk 00:03:51]} {[%emt 00:00:30]} 55. Kf3
{[%clk 00:12:07]} {[%emt 00:01:01]} Kc5 {[%clk 00:03:54]} {[%emt 00:00:28]} 56.
Ke2 {[%clk 00:12:13]} {[%emt 00:00:23]} Kc4 {[%clk 00:04:00]} {[%emt 00:00:24]}
57. Kd2 {[%clk 00:12:33]} {[%emt 00:00:10]} Kb3 {[%clk 00:01:17]} {[%emt
00:03:14]} 58. b6 {[%clk 00:11:53]} {[%emt 00:01:10]} d4 {[%clk 00:01:26]}
{[%emt 00:00:20]} 59. exd4 {[%clk 00:12:20]} {[%emt 00:00:03]} exd4 {[%clk
00:01:52]} {[%emt 00:00:05]} 60. Nb5 {[%clk 00:11:54]} {[%emt 00:00:55]} Na6
{[%clk 00:00:59]} {[%emt 00:01:23]} 61. Nxd4+ {[%clk 00:11:44]} {[%emt
00:00:40]} Kxa4 {[%clk 00:01:22]} {[%emt 00:00:07]} 62. b7 {[%clk 00:10:51]}
{[%emt 00:01:23]} Nb8 {[%clk 00:01:28]} {[%emt 00:00:24]} 63. Kc3 {[%emt
00:00:48]} 1-0

[Event "XXII Obert Internacional d'Escacs Sant Marti 2022"]
[Site "Barcelona, Spain"]
[Date "2022.07.20"]
[Round "8.4"]
[White "Asis Gargatagli, Hipolito"]
[Black "Lindh, Fredrik"]
[Result "1-0"]
[TimeControl "1.30 fb 30"]
[WhiteElo "2514"]
[BlackElo "2287"]

1. e4 {[%clk 01:30:57]} {[%emt 00:00:02]} c5 {[%clk 01:27:26]} {[%emt
00:03:35]} 2. c3 {[%clk 01:31:17]} {[%emt 00:00:10]} g6 {[%clk 01:27:36]}
{[%emt 00:00:20]} 3. d4 {[%clk 01:30:49]} {[%emt 00:00:58]} cxd4 {[%clk
01:27:59]} {[%emt 00:00:07]} 4. cxd4 {[%clk 01:31:14]} {[%emt 00:00:05]} d5
{[%clk 01:28:23]} {[%emt 00:00:06]} 5. e5 {[%clk 01:31:29]} {[%emt 00:00:15]}
Nc6 {[%clk 01:28:38]} {[%emt 00:00:14]} 6. Nc3 {[%clk 01:31:38]} {[%emt
00:00:22]} Bg7 {[%clk 01:28:43]} {[%emt 00:00:25]} 7. h3 {[%clk 01:30:46]}
{[%emt 00:01:21]} Nh6 {[%clk 01:23:19]} {[%emt 00:05:55]} 8. g4 {[%clk
01:29:53]} {[%emt 00:01:23]} f6 {[%clk 00:54:57]} {[%emt 00:28:52]} 9. f4
{[%clk 01:26:29]} {[%emt 00:03:53]} fxe5 {[%clk 00:52:10]} {[%emt 00:03:18]} 10.
fxe5 {[%clk 01:25:45]} {[%emt 00:01:14]} e6 {[%clk 00:48:34]} {[%emt 00:04:06]}
11. Nf3 {[%clk 01:24:58]} {[%emt 00:01:16]} O-O {[%clk 00:48:45]} {[%emt
00:00:19]} 12. Bg2 {[%clk 01:24:58]} {[%emt 00:00:30]} Qb6 {[%clk 00:48:14]}
{[%emt 00:01:02]} 13. O-O {[%clk 01:22:43]} {[%emt 00:02:44]} Rxf3 {[%clk
00:40:24]} {[%emt 00:08:20]} 14. Qxf3 {[%clk 01:21:10]} {[%emt 00:02:03]} Nxe5
{[%clk 00:40:35]} {[%emt 00:00:19]} 15. Qe2 {[%clk 01:01:51]} {[%emt 00:19:49]}
Qxd4+ {[%clk 00:39:55]} {[%emt 00:01:10]} 16. Be3 {[%clk 00:54:50]} {[%emt
00:07:32]} Qd3 {[%clk 00:29:11]} {[%emt 00:11:14]} 17. Qf2 {[%clk 00:17:59]}
{[%emt 00:37:20]} d4 {[%clk 00:18:22]} {[%emt 00:11:20]} 18. Rad1 {[%clk
00:14:38]} {[%emt 00:03:51]} dxe3 {[%clk 00:12:13]} {[%emt 00:06:38]} 19. Qe2
{[%clk 00:10:07]} {[%emt 00:05:01]} 1-0

[Event "XXII Obert Internacional d'Escacs Sant Marti 2022"]
[Site "Barcelona, Spain"]
[Date "2022.07.20"]
[Round "8.5"]
[White "Barbero Sendic, Alejandro"]
[Black "Roshka, Yevgeniy"]
[Result "0-1"]
[TimeControl "1.30 fb 30"]
[WhiteElo "2326"]
[BlackElo "2497"]

1. e4 {[%clk 01:30:58]} g6 {[%clk 01:28:34]} {[%emt 00:02:27]} 2. d4 {[%clk
01:28:56]} {[%emt 00:02:32]} Bg7 {[%clk 01:29:02]} {[%emt 00:00:02]} 3. Nf3
{[%clk 01:29:09]} {[%emt 00:00:17]} d6 {[%clk 01:29:25]} {[%emt 00:00:08]} 4.
Be3 {[%clk 01:29:22]} {[%emt 00:00:16]} a6 {[%clk 01:25:14]} {[%emt 00:04:42]}
5. c4 {[%clk 01:26:43]} {[%emt 00:03:07]} Bg4 {[%clk 01:24:20]} {[%emt
00:01:25]} 6. Nc3 {[%clk 01:23:28]} {[%emt 00:03:45]} Nc6 {[%clk 01:24:09]}
{[%emt 00:00:41]} 7. d5 {[%clk 01:23:42]} {[%emt 00:00:17]} Ne5 {[%clk
01:22:57]} {[%emt 00:01:42]} 8. Be2 {[%clk 01:23:43]} {[%emt 00:00:28]} Bxf3
{[%clk 01:22:02]} {[%emt 00:01:26]} 9. gxf3 {[%clk 01:23:02]} {[%emt 00:01:10]}
c5 {[%clk 01:22:06]} {[%emt 00:00:26]} 10. dxc6 {[%clk 01:14:09]} {[%emt
00:09:24]} bxc6 {[%clk 01:14:20]} {[%emt 00:08:17]} 11. Qa4 {[%clk 01:10:03]}
{[%emt 00:04:35]} Qc8 {[%clk 01:12:10]} {[%emt 00:02:39]} 12. c5 {[%clk
01:04:34]} {[%emt 00:06:00]} dxc5 {[%clk 01:12:26]} {[%emt 00:00:14]} 13. f4
{[%clk 00:56:43]} {[%emt 00:08:20]} Nd7 {[%clk 01:12:51]} {[%emt 00:00:06]} 14.
e5 {[%clk 00:57:08]} {[%emt 00:00:05]} Nh6 {[%clk 01:09:12]} {[%emt 00:04:09]}
15. Bf3 {[%clk 00:56:40]} {[%emt 00:00:58]} O-O {[%clk 01:09:37]} {[%emt
00:00:05]} 16. Qxc6 {[%clk 00:56:16]} {[%emt 00:00:54]} Ra7 {[%clk 01:09:28]}
{[%emt 00:00:39]} 17. Qxc8 {[%clk 00:53:16]} {[%emt 00:03:29]} Rxc8 {[%clk
01:09:07]} {[%emt 00:00:51]} 18. O-O-O {[%clk 00:49:34]} {[%emt 00:04:12]} Nf5
{[%clk 01:07:55]} {[%emt 00:01:42]} 19. Rd2 {[%clk 00:47:28]} {[%emt 00:02:36]}
Nf8 {[%clk 01:07:33]} {[%emt 00:00:53]} 20. Bg4 {[%clk 00:41:57]} {[%emt
00:06:01]} f6 {[%clk 01:03:27]} {[%emt 00:04:37]} 21. Bxf5 {[%clk 00:31:47]}
{[%emt 00:10:39]} gxf5 {[%clk 01:03:25]} {[%emt 00:00:32]} 22. exf6 {[%clk
00:31:34]} {[%emt 00:00:43]} Bxf6 {[%clk 01:03:53]} {[%emt 00:00:02]} 23. Rd5
{[%clk 00:31:52]} {[%emt 00:00:12]} Ne6 {[%clk 00:59:43]} {[%emt 00:04:40]} 24.
Rxf5 {[%clk 00:29:34]} {[%emt 00:02:48]} Rb7 {[%clk 01:00:07]} {[%emt
00:00:06]} 25. Rg1+ {[%clk 00:19:24]} {[%emt 00:10:40]} Kh8 {[%clk 00:45:42]}
{[%emt 00:05:49]} 26. Nd1 Rcb8 {[%clk 00:38:34]} {[%emt 00:12:34]} 27. Rg2
{[%clk 00:12:10]} c4 {[%emt 00:16:45]} 28. Ra5 {[%emt 00:02:48]} c3 {[%clk
00:32:50]} {[%emt 00:00:06]} 29. bxc3 {[%clk 00:11:41]} {[%emt 00:00:58]} Rb1+
{[%clk 00:33:18]} {[%emt 00:00:02]} 30. Kc2 {[%clk 00:12:01]} {[%emt 00:00:10]}
Ra1 {[%clk 00:32:19]} 31. Rxa6 {[%clk 00:10:45]} {[%emt 00:03:15]} Nc7 {[%clk
00:32:29]} {[%emt 00:05:08]} 32. Ra4 Nb5 {[%emt 00:03:35]} 33. Bd4 {[%emt
00:00:20]} Bxd4 {[%clk 00:32:49]} {[%emt 00:00:06]} 34. cxd4 {[%clk 00:02:29]}
{[%emt 00:01:37]} Rxd1 {[%clk 00:33:07]} 35. Kxd1 {[%clk 00:02:37]} {[%emt
00:00:34]} Nc3+ {[%clk 00:33:36]} 36. Kc2 {[%clk 00:02:08]} {[%emt 00:00:59]}
Nxa4 {[%emt 00:01:20]} 37. Kd3 {[%clk 00:01:19]} {[%emt 00:00:01]} Rb2 {[%clk
00:34:09]} 38. Ke4 {[%clk 00:01:18]} {[%emt 00:00:57]} Rxa2 {[%clk 00:33:56]}
39. Kf5 {[%clk 00:01:38]} {[%emt 00:00:53]} Re2 {[%emt 00:01:10]} 40. Rg3 Rxf2
{[%clk 00:28:42]} 41. Re3 {[%clk 00:01:54]} {[%emt 00:05:48]} Rd2 {[%clk
00:28:19]} 42. Rxe7 {[%clk 00:02:02]} {[%emt 00:01:16]} Rxd4 {[%clk 00:28:47]}
43. Ke5 {[%clk 00:02:04]} {[%emt 00:00:29]} Rd2 {[%clk 00:26:45]} 44. Kf6
{[%clk 00:01:27]} {[%emt 00:03:39]} Rd8 {[%clk 00:25:30]} 45. f5 {[%clk
00:01:01]} {[%emt 00:02:41]} Rf8+ {[%emt 00:01:50]} 46. Kg5 Nb6 {[%clk
00:23:13]} 47. Kh6 {[%clk 00:00:41]} {[%emt 00:02:47]} Rf6+ {[%clk 00:23:42]}
48. Kg5 {[%clk 00:01:03]} {[%emt 00:00:08]} Nd5 {[%clk 00:24:01]} 49. Rd7
{[%clk 00:00:34]} {[%emt 00:01:11]} h6+ {[%clk 00:24:29]} 0-1

[Event "XXII Obert Internacional d'Escacs Sant Marti 2022"]
[Site "Barcelona, Spain"]
[Date "2022.07.20"]
[Round "8.6"]
[White "Narciso Dublan, Marc"]
[Black "Dahale, Atul"]
[Result "1-0"]
[TimeControl "1.30 fb 30"]
[WhiteElo "2461"]
[BlackElo "2162"]

1. e4 {[%clk 01:24:12]} {[%emt 00:06:46]} d6 {[%clk 01:30:32]} {[%emt
00:00:30]} 2. d4 {[%clk 01:23:35]} {[%emt 00:01:07]} Nf6 {[%clk 01:30:41]}
{[%emt 00:00:20]} 3. Nc3 {[%clk 01:23:44]} {[%emt 00:00:21]} g6 {[%clk
01:29:58]} {[%emt 00:01:14]} 4. Nf3 {[%clk 01:23:45]} {[%emt 00:00:28]} Bg7
{[%clk 01:30:17]} {[%emt 00:00:12]} 5. Be2 {[%clk 01:24:03]} {[%emt 00:00:10]}
O-O {[%clk 01:30:29]} {[%emt 00:00:20]} 6. O-O {[%clk 01:24:28]} {[%emt
00:00:05]} c6 {[%clk 01:29:34]} {[%emt 00:01:24]} 7. a4 {[%clk 01:23:51]}
{[%emt 00:01:07]} Nbd7 {[%clk 01:29:29]} {[%emt 00:00:35]} 8. a5 {[%clk
01:23:21]} {[%emt 00:00:59]} Rb8 {[%clk 01:23:37]} {[%emt 00:06:23]} 9. e5
{[%clk 01:19:45]} {[%emt 00:04:06]} Ne8 {[%clk 01:22:59]} {[%emt 00:01:08]} 10.
Bf4 {[%clk 01:19:10]} {[%emt 00:01:05]} Qc7 {[%clk 01:21:31]} {[%emt 00:01:58]}
11. exd6 {[%clk 01:10:13]} {[%emt 00:09:27]} Nxd6 {[%clk 01:21:01]} {[%emt
00:01:00]} 12. h3 {[%clk 00:59:09]} {[%emt 00:11:34]} b5 {[%clk 01:13:48]}
{[%emt 00:07:44]} 13. axb6 {[%clk 00:57:18]} {[%emt 00:02:21]} axb6 {[%clk
01:14:02]} {[%emt 00:00:15]} 14. Re1 {[%clk 00:56:13]} {[%emt 00:01:35]} Nf6
{[%clk 01:11:17]} {[%emt 00:03:16]} 15. Bf1 {[%clk 00:52:43]} {[%emt 00:03:59]}
Bb7 {[%clk 01:05:19]} {[%emt 00:06:27]} 16. Ne5 {[%clk 00:51:15]} {[%emt
00:01:58]} Ra8 {[%clk 00:58:35]} {[%emt 00:07:15]} 17. Qd3 {[%clk 00:43:37]}
{[%emt 00:08:07]} Nd5 {[%clk 00:49:04]} {[%emt 00:10:01]} 18. Nxd5 {[%clk
00:42:09]} {[%emt 00:01:59]} cxd5 {[%clk 00:49:28]} {[%emt 00:00:06]} 19. Qb3
{[%clk 00:41:57]} {[%emt 00:00:42]} Rfe8 {[%clk 00:45:14]} {[%emt 00:04:44]} 20.
Rxa8 {[%clk 00:30:04]} {[%emt 00:12:22]} Rxa8 {[%clk 00:43:03]} {[%emt
00:02:42]} 21. h4 {[%clk 00:24:37]} {[%emt 00:05:56]} Qd8 {[%clk 00:37:58]}
{[%emt 00:05:36]} 22. h5 {[%clk 00:22:47]} {[%emt 00:02:20]} e6 {[%clk
00:35:34]} {[%emt 00:02:54]} 23. Qh3 {[%clk 00:19:12]} {[%emt 00:04:04]} Nf5
{[%clk 00:34:52]} {[%emt 00:01:13]} 24. c3 {[%clk 00:16:32]} {[%emt 00:03:09]}
Ba6 {[%emt 00:01:03]} 25. Nc6 {[%clk 00:13:55]} {[%emt 00:03:06]} Qe8 {[%clk
00:28:29]} {[%emt 00:06:21]} 26. Bxa6 {[%clk 00:14:08]} {[%emt 00:00:17]} Rxa6
{[%clk 00:25:30]} {[%emt 00:03:30]} 27. Nb4 {[%clk 00:14:24]} {[%emt 00:00:14]}
Ra5 {[%clk 00:25:44]} {[%emt 00:00:16]} 28. g4 {[%clk 00:14:23]} {[%emt
00:00:31]} Ne7 {[%clk 00:25:13]} {[%emt 00:01:01]} 29. Qh4 {[%clk 00:13:26]}
{[%emt 00:01:26]} Ra7 {[%clk 00:23:09]} {[%emt 00:02:35]} 30. Bg5 {[%clk
00:11:51]} {[%emt 00:02:05]} Bf8 {[%clk 00:23:30]} {[%emt 00:00:10]} 31. Bf6
{[%clk 00:11:10]} {[%emt 00:01:09]} Qd7 {[%clk 00:19:06]} {[%emt 00:05:25]} 32.
Nd3 {[%clk 00:10:45]} {[%emt 00:01:25]} Bg7 {[%clk 00:18:19]} {[%emt 00:01:17]}
33. Bxg7 {[%clk 00:10:12]} {[%emt 00:01:03]} Kxg7 {[%clk 00:18:38]} {[%emt
00:00:12]} 34. h6+ {[%clk 00:10:37]} {[%emt 00:00:04]} 1-0